[Event "Titled Tuesday Blitz March 22 Late 2022"]
[White "Martinez Alcantara, Jose Eduardo"]
[Black "Kaasen, Tor Fredrik"]
[WhiteFideId "3805662"]
[BlackFideId "1516647"]
[WhiteElo "2690"]
[BlackElo "2335"]
[Result "1-0"]
[Round "02"]
[TimeControl "180+1"]
[Date "2022.03.22"]
[WhiteClock "0:01:48"]
[BlackClock "0:01:15"]

1. e4 {[%clk 0:03:00]}  c5 {[%clk 0:03:00]} 2. Nf3 {[%clk 0:02:59]}  d6 {[%clk 0:03:00]} 3. c3 {[%clk 0:02:59]}  Nf6 {[%clk 0:03:00]} 4. h3 {[%clk 0:03:00]}  e6 {[%clk 0:03:01]} 5. Bd3 {[%clk 0:03:00]}  Nc6 {[%clk 0:02:56]} 6. Bc2 {[%clk 0:03:00]}  d5 {[%clk 0:02:54]} 7. e5 {[%clk 0:03:00]}  Nd7 {[%clk 0:02:54]} 8. d4 {[%clk 0:03:00]}  f6 {[%clk 0:02:45]} 9. Ng5 {[%clk 0:02:29]}  Ndxe5 {[%clk 0:02:27]} 10. dxe5 {[%clk 0:02:09]}  fxg5 {[%clk 0:02:27]} 11. Qh5+ {[%clk 0:02:09]}  Kd7 {[%clk 0:02:27]} 12. Bxg5 {[%clk 0:02:09]}  Qe8 {[%clk 0:02:20]} 13. Qe2 {[%clk 0:02:05]}  Be7 {[%clk 0:02:04]} 14. Bf4 {[%clk 0:02:05]}  Rf8 {[%clk 0:02:02]} 15. Bg3 {[%clk 0:02:06]}  h5 {[%clk 0:01:59]} 16. Nd2 {[%clk 0:02:03]}  h4 {[%clk 0:01:58]} 17. Bh2 {[%clk 0:02:04]}  b6 {[%clk 0:01:50]} 18. f4 {[%clk 0:01:57]}  a5 {[%clk 0:01:45]} 19. O-O-O {[%clk 0:01:56]}  Ba6 {[%clk 0:01:45]} 20. Qg4 {[%clk 0:01:55]}  Rd8 {[%clk 0:01:19]} 21. Bg6 {[%clk 0:01:51]}  Rf7 {[%clk 0:01:15]} 22. Qh5 {[%clk 0:01:48]} 1-0


[Site "https://www.chess.com"]

[Event "Titled Tuesday Blitz March 22 Late 2022"]
[White "Milanovic, Marko"]
[Black "Winkels, Marcel"]
[WhiteFideId "980129"]
[BlackFideId "1003887"]
[WhiteElo "2159"]
[BlackElo "1900"]
[Result "1-0"]
[Round "02"]
[TimeControl "180+1"]
[Date "2022.03.22"]
[WhiteClock "0:00:07"]
[BlackClock "0:00:01"]

1. e4 {[%clk 0:03:00]}  c5 {[%clk 0:02:58]} 2. Nf3 {[%clk 0:02:58]}  d6 {[%clk 0:02:58]} 3. Bb5+ {[%clk 0:02:56]}  Nd7 {[%clk 0:02:57]} 4. d4 {[%clk 0:02:56]}  cxd4 {[%clk 0:02:55]} 5. Qxd4 {[%clk 0:02:57]}  a6 {[%clk 0:02:55]} 6. Bxd7+ {[%clk 0:02:57]}  Bxd7 {[%clk 0:02:55]} 7. Nc3 {[%clk 0:02:58]}  e5 {[%clk 0:02:54]} 8. Qd3 {[%clk 0:02:57]}  h6 {[%clk 0:02:54]} 9. O-O {[%clk 0:02:57]}  Nf6 {[%clk 0:02:55]} 10. h3 {[%clk 0:02:58]}  Be7 {[%clk 0:02:55]} 11. Be3 {[%clk 0:02:57]}  O-O {[%clk 0:02:39]} 12. Rad1 {[%clk 0:02:53]}  Rc8 {[%clk 0:02:34]} 13. Rfe1 {[%clk 0:02:50]}  b5 {[%clk 0:02:30]} 14. a3 {[%clk 0:02:48]}  Be6 {[%clk 0:02:24]} 15. Qe2 {[%clk 0:02:34]}  Qc7 {[%clk 0:02:19]} 16. Rd2 {[%clk 0:02:24]}  Bc4 {[%clk 0:02:15]} 17. Qd1 {[%clk 0:02:20]}  Qb7 {[%clk 0:02:07]} 18. Nh4 {[%clk 0:01:52]}  Be6 {[%clk 0:02:02]} 19. Nf5 {[%clk 0:01:47]}  Bxf5 {[%clk 0:01:59]} 20. exf5 {[%clk 0:01:48]}  Rfd8 {[%clk 0:01:52]} 21. Rde2 {[%clk 0:01:22]}  d5 {[%clk 0:01:46]} 22. Bd4 {[%clk 0:01:17]}  exd4 {[%clk 0:01:16]} 23. Rxe7 {[%clk 0:01:10]}  Rd7 {[%clk 0:01:16]} 24. Rxd7 {[%clk 0:01:05]}  Qxd7 {[%clk 0:01:16]} 25. Qxd4 {[%clk 0:01:05]}  Qxf5 {[%clk 0:01:15]} 26. Re2 {[%clk 0:00:57]}  Qd7 {[%clk 0:01:06]} 27. Rd2 {[%clk 0:00:38]}  Rc4 {[%clk 0:01:04]} 28. Qd3 {[%clk 0:00:38]}  Qe6 {[%clk 0:00:46]} 29. Re2 {[%clk 0:00:33]}  Qd7 {[%clk 0:00:45]} 30. Qf3 {[%clk 0:00:24]}  Ne4 {[%clk 0:00:33]} 31. Nd1 {[%clk 0:00:11]}  Rc8 {[%clk 0:00:29]} 32. Ne3 {[%clk 0:00:10]}  Nf6 {[%clk 0:00:27]} 33. c3 {[%clk 0:00:10]}  a5 {[%clk 0:00:26]} 34. Rd2 {[%clk 0:00:10]}  Rd8 {[%clk 0:00:24]} 35. Rd4 {[%clk 0:00:11]}  Qd6 {[%clk 0:00:22]} 36. Nf5 {[%clk 0:00:11]}  Qd7 {[%clk 0:00:21]} 37. g4 {[%clk 0:00:11]}  Kh7 {[%clk 0:00:17]} 38. Qf4 {[%clk 0:00:10]}  g5 {[%clk 0:00:13]} 39. Qf3 {[%clk 0:00:09]}  Ne4 {[%clk 0:00:11]} 40. Ne3 {[%clk 0:00:06]}  Qe6 {[%clk 0:00:07]} 41. Nf5 {[%clk 0:00:05]}  Qd7 {[%clk 0:00:06]} 42. Qe3 {[%clk 0:00:06]}  Qe6 {[%clk 0:00:05]} 43. f3 {[%clk 0:00:06]}  Nf6 {[%clk 0:00:04]} 44. Qf2 {[%clk 0:00:07]}  Ne8 {[%clk 0:00:03]} 45. h4 {[%clk 0:00:07]}  Nc7 {[%clk 0:00:02]} 46. hxg5 {[%clk 0:00:07]}  hxg5 {[%clk 0:00:02]} 47. Qh2+ {[%clk 0:00:08]}  Kg8 {[%clk 0:00:01]} 48. Qxc7 {[%clk 0:00:07]} 1-0


[Site "https://www.chess.com"]

[Event "Titled Tuesday Blitz March 22 Late 2022"]
[White "Mirza, Diana"]
[Black "Oganian, Miran"]
[WhiteFideId "2503999"]
[BlackFideId "4122488"]
[WhiteElo "1813"]
[BlackElo "2357"]
[Result "1-0"]
[Round "02"]
[TimeControl "180+1"]
[Date "2022.03.22"]
[WhiteClock "0:00:13"]
[BlackClock "0:00:34"]

1. d4 {[%clk 0:03:00]}  e6 {[%clk 0:02:59]} 2. Nf3 {[%clk 0:02:59]}  d5 {[%clk 0:02:59]} 3. e3 {[%clk 0:02:59]}  Nf6 {[%clk 0:02:58]} 4. Bd3 {[%clk 0:02:59]}  g6 {[%clk 0:02:58]} 5. b4 {[%clk 0:02:58]}  Bg7 {[%clk 0:02:59]} 6. c4 {[%clk 0:02:55]}  O-O {[%clk 0:02:59]} 7. Nbd2 {[%clk 0:02:44]}  b6 {[%clk 0:03:00]} 8. Bb2 {[%clk 0:02:41]}  Bb7 {[%clk 0:02:59]} 9. Qc2 {[%clk 0:02:40]}  Nbd7 {[%clk 0:03:00]} 10. O-O {[%clk 0:02:38]}  c5 {[%clk 0:03:00]} 11. bxc5 {[%clk 0:02:36]}  bxc5 {[%clk 0:03:01]} 12. Rab1 {[%clk 0:02:34]}  Rc8 {[%clk 0:02:58]} 13. Ba3 {[%clk 0:02:31]}  Qa5 {[%clk 0:02:44]} 14. Bb2 {[%clk 0:02:05]}  cxd4 {[%clk 0:02:38]} 15. Nxd4 {[%clk 0:01:56]}  Ba6 {[%clk 0:02:35]} 16. N4b3 {[%clk 0:01:27]}  Qa4 {[%clk 0:02:34]} 17. c5 {[%clk 0:01:20]}  Nxc5 {[%clk 0:02:25]} 18. Bxa6 {[%clk 0:01:07]}  Nxa6 {[%clk 0:02:15]} 19. Qd3 {[%clk 0:01:05]}  Nb4 {[%clk 0:02:10]} 20. Qd4 {[%clk 0:00:54]}  Nh5 {[%clk 0:02:09]} 21. Qh4 {[%clk 0:00:50]}  Bxb2 {[%clk 0:02:08]} 22. Rxb2 {[%clk 0:00:50]}  Nd3 {[%clk 0:02:06]} 23. Qxa4 {[%clk 0:00:49]}  Nxb2 {[%clk 0:02:04]} 24. Qxa7 {[%clk 0:00:46]}  Ra8 {[%clk 0:01:50]} 25. Qd4 {[%clk 0:00:43]}  Na4 {[%clk 0:01:50]} 26. Nf3 {[%clk 0:00:40]}  Ng7 {[%clk 0:01:50]} 27. Ne5 {[%clk 0:00:40]}  Nf5 {[%clk 0:01:48]} 28. Qa1 {[%clk 0:00:35]}  Rfc8 {[%clk 0:01:29]} 29. Nd7 {[%clk 0:00:33]}  Nc3 {[%clk 0:01:30]} 30. Nb6 {[%clk 0:00:29]}  Rab8 {[%clk 0:01:14]} 31. Nxc8 {[%clk 0:00:28]}  Rxc8 {[%clk 0:01:14]} 32. Nd4 {[%clk 0:00:25]}  Nd6 {[%clk 0:01:13]} 33. Kh1 {[%clk 0:00:22]}  Nde4 {[%clk 0:01:12]} 34. h4 {[%clk 0:00:22]}  e5 {[%clk 0:01:11]} 35. Nf3 {[%clk 0:00:18]}  f6 {[%clk 0:01:12]} 36. Rc1 {[%clk 0:00:17]}  Nxf2+ {[%clk 0:01:11]} 37. Kh2 {[%clk 0:00:15]}  Nfe4 {[%clk 0:01:06]} 38. Nd2 {[%clk 0:00:14]}  Rb8 {[%clk 0:00:53]} 39. Nxe4 {[%clk 0:00:13]}  Nxe4 {[%clk 0:00:53]} 40. Rc7 {[%clk 0:00:13]}  Nd6 {[%clk 0:00:41]} 41. Qc1 {[%clk 0:00:13]}  Nc4 {[%clk 0:00:38]} 42. Rxc4 {[%clk 0:00:12]}  dxc4 {[%clk 0:00:38]} 43. Qxc4+ {[%clk 0:00:13]}  Kf8 {[%clk 0:00:37]} 44. Qc5+ {[%clk 0:00:12]}  Kg8 {[%clk 0:00:36]} 45. Qd5+ {[%clk 0:00:12]}  Kh8 {[%clk 0:00:36]} 46. a4 {[%clk 0:00:10]}  Rb1 {[%clk 0:00:31]} 47. a5 {[%clk 0:00:10]}  Ra1 {[%clk 0:00:32]} 48. Qd8+ {[%clk 0:00:09]}  Kg7 {[%clk 0:00:32]} 49. Qe7+ {[%clk 0:00:09]}  Kh6 {[%clk 0:00:33]} 50. Qxf6 {[%clk 0:00:09]}  Rxa5 {[%clk 0:00:33]} 51. Qg5+ {[%clk 0:00:09]}  Kg7 {[%clk 0:00:34]} 52. h5 {[%clk 0:00:09]}  Rb5 {[%clk 0:00:32]} 53. h6+ {[%clk 0:00:09]}  Kf7 {[%clk 0:00:32]} 54. Qg4 {[%clk 0:00:08]}  Rb7 {[%clk 0:00:31]} 55. Qf3+ {[%clk 0:00:08]}  Ke6 {[%clk 0:00:31]} 56. Qxb7 {[%clk 0:00:09]}  Kf5 {[%clk 0:00:32]} 57. Qxh7 {[%clk 0:00:10]}  Kg5 {[%clk 0:00:32]} 58. Qg7 {[%clk 0:00:10]}  Kh5 {[%clk 0:00:33]} 59. h7 {[%clk 0:00:11]}  Kg5 {[%clk 0:00:33]} 60. h8=Q {[%clk 0:00:12]}  e4 {[%clk 0:00:34]} 61. Qhh7 {[%clk 0:00:13]}  Kf5 {[%clk 0:00:34]} 62. Qhxg6# {[%clk 0:00:13]} 1-0


[Site "https://www.chess.com"]

[Event "Titled Tuesday Blitz March 22 Late 2022"]
[White "Msellek, Ilyass"]
[Black "Zhukov, Maksim"]
[WhiteFideId "675938"]
[BlackFideId "34181790"]
[WhiteElo "2219"]
[BlackElo "1978"]
[Result "1-0"]
[Round "02"]
[TimeControl "180+1"]
[Date "2022.03.22"]
[WhiteClock "0:01:17"]
[BlackClock "0:01:25"]

1. d4 {[%clk 0:03:00]}  Nf6 {[%clk 0:02:59]} 2. Bf4 {[%clk 0:03:00]}  g6 {[%clk 0:03:00]} 3. Nc3 {[%clk 0:02:59]}  Bg7 {[%clk 0:03:00]} 4. Qd2 {[%clk 0:02:58]}  O-O {[%clk 0:03:01]} 5. Bh6 {[%clk 0:02:58]}  c5 {[%clk 0:03:00]} 6. Bxg7 {[%clk 0:02:56]}  Kxg7 {[%clk 0:03:00]} 7. dxc5 {[%clk 0:02:56]}  Qa5 {[%clk 0:03:00]} 8. O-O-O {[%clk 0:02:54]}  Na6 {[%clk 0:02:59]} 9. e4 {[%clk 0:02:53]}  Nxc5 {[%clk 0:02:59]} 10. e5 {[%clk 0:02:53]}  Nfe4 {[%clk 0:02:54]} 11. Nxe4 {[%clk 0:02:52]}  Qxa2 {[%clk 0:02:53]} 12. Qd4 {[%clk 0:02:51]}  Qa1+ {[%clk 0:02:12]} 13. Kd2 {[%clk 0:02:50]}  Nxe4+ {[%clk 0:02:13]} 14. Qxe4 {[%clk 0:02:46]}  Qxb2 {[%clk 0:02:14]} 15. Nf3 {[%clk 0:02:41]}  a5 {[%clk 0:02:14]} 16. Qd4 {[%clk 0:02:39]}  Qxd4+ {[%clk 0:02:05]} 17. Nxd4 {[%clk 0:02:40]}  a4 {[%clk 0:02:04]} 18. Bb5 {[%clk 0:02:38]}  d6 {[%clk 0:02:03]} 19. exd6 {[%clk 0:02:37]}  exd6 {[%clk 0:02:04]} 20. Ra1 {[%clk 0:02:36]}  a3 {[%clk 0:02:03]} 21. Ra2 {[%clk 0:02:34]}  Be6 {[%clk 0:01:43]} 22. c4 {[%clk 0:02:32]}  Rfc8 {[%clk 0:01:39]} 23. Nxe6+ {[%clk 0:02:30]}  fxe6 {[%clk 0:01:40]} 24. Rha1 {[%clk 0:02:30]}  d5 {[%clk 0:01:40]} 25. cxd5 {[%clk 0:02:23]}  exd5 {[%clk 0:01:40]} 26. Rxa3 {[%clk 0:02:23]}  Rxa3 {[%clk 0:01:39]} 27. Rxa3 {[%clk 0:02:24]}  Rc5 {[%clk 0:01:39]} 28. Bd3 {[%clk 0:02:24]}  b5 {[%clk 0:01:38]} 29. Ra7+ {[%clk 0:02:24]}  Kh6 {[%clk 0:01:37]} 30. Rb7 {[%clk 0:02:24]}  Kg5 {[%clk 0:01:28]} 31. Rxb5 {[%clk 0:02:22]}  Rxb5 {[%clk 0:01:26]} 32. Bxb5 {[%clk 0:02:23]}  Kf4 {[%clk 0:01:27]} 33. Be2 {[%clk 0:02:21]}  g5 {[%clk 0:01:26]} 34. g3+ {[%clk 0:02:21]}  Kf5 {[%clk 0:01:26]} 35. h3 {[%clk 0:02:19]}  h6 {[%clk 0:01:25]} 36. Ke3 {[%clk 0:02:16]}  Ke5 {[%clk 0:01:25]} 37. f4+ {[%clk 0:02:16]}  gxf4+ {[%clk 0:01:25]} 38. gxf4+ {[%clk 0:02:17]}  Kf5 {[%clk 0:01:25]} 39. Bd3+ {[%clk 0:02:18]}  Kf6 {[%clk 0:01:25]} 40. Kd4 {[%clk 0:02:18]}  Ke6 {[%clk 0:01:23]} 41. f5+ {[%clk 0:02:18]}  Kf6 {[%clk 0:01:23]} 42. Bb1 {[%clk 0:02:17]}  Kg5 {[%clk 0:01:23]} 43. Kxd5 {[%clk 0:02:17]}  Kh4 {[%clk 0:01:22]} 44. f6 {[%clk 0:02:17]}  Kxh3 {[%clk 0:01:23]} 45. f7 {[%clk 0:02:18]}  h5 {[%clk 0:01:23]} 46. f8=Q {[%clk 0:02:18]}  h4 {[%clk 0:01:24]} 47. Qf3+ {[%clk 0:02:16]}  Kh2 {[%clk 0:01:25]} 48. Bf5 {[%clk 0:02:13]}  h3 {[%clk 0:01:26]} 49. Qxh3+ {[%clk 0:02:13]}  Kg1 {[%clk 0:01:26]} 50. Ke4 {[%clk 0:02:12]}  Kf2 {[%clk 0:01:26]} 51. Qe3+ {[%clk 0:02:12]}  Kf1 {[%clk 0:01:26]} 52. Qd2 {[%clk 0:02:12]}  Kg1 {[%clk 0:01:26]} 53. Kf3 {[%clk 0:02:12]}  Kh1 {[%clk 0:01:25]} 54. Qg2# {[%clk 0:01:17]} 1-0


[Site "https://www.chess.com"]

[Event "Titled Tuesday Blitz March 22 Late 2022"]
[White "Muetsch, Annmarie"]
[Black "Romanchuk, Viktor"]
[WhiteFideId "12971367"]
[BlackFideId "14109271"]
[WhiteElo "2249"]
[BlackElo "2242"]
[Result "1-0"]
[Round "02"]
[TimeControl "180+1"]
[Date "2022.03.22"]
[WhiteClock "0:00:17"]
[BlackClock "0:00:34"]

1. Nf3 {[%clk 0:02:56]}  d5 {[%clk 0:02:57]} 2. g3 {[%clk 0:02:56]}  c6 {[%clk 0:02:57]} 3. Bg2 {[%clk 0:02:56]}  Bg4 {[%clk 0:02:57]} 4. d3 {[%clk 0:02:56]}  e6 {[%clk 0:02:57]} 5. Nbd2 {[%clk 0:02:56]}  Nd7 {[%clk 0:02:57]} 6. e4 {[%clk 0:02:54]}  Bd6 {[%clk 0:02:57]} 7. h3 {[%clk 0:02:51]}  Bh5 {[%clk 0:02:57]} 8. O-O {[%clk 0:02:47]}  Ne7 {[%clk 0:02:56]} 9. Qe2 {[%clk 0:02:41]}  O-O {[%clk 0:02:56]} 10. Rd1 {[%clk 0:02:34]}  Qb6 {[%clk 0:02:53]} 11. Nf1 {[%clk 0:02:31]}  Rad8 {[%clk 0:02:47]} 12. c3 {[%clk 0:02:30]}  dxe4 {[%clk 0:02:41]} 13. dxe4 {[%clk 0:02:29]}  Ne5 {[%clk 0:02:41]} 14. Be3 {[%clk 0:02:24]}  Bc5 {[%clk 0:02:14]} 15. Bxc5 {[%clk 0:01:57]}  Qxc5 {[%clk 0:02:15]} 16. Rxd8 {[%clk 0:01:56]}  Rxd8 {[%clk 0:02:12]} 17. Rd1 {[%clk 0:01:51]}  Re8 {[%clk 0:01:57]} 18. g4 {[%clk 0:01:20]}  Bg6 {[%clk 0:01:51]} 19. Qe3 {[%clk 0:01:03]}  Nxf3+ {[%clk 0:01:39]} 20. Bxf3 {[%clk 0:01:02]}  Qxe3 {[%clk 0:01:38]} 21. Nxe3 {[%clk 0:01:03]}  Kf8 {[%clk 0:01:38]} 22. Rd7 {[%clk 0:01:03]}  Rb8 {[%clk 0:01:38]} 23. Nc4 {[%clk 0:01:00]}  Ke8 {[%clk 0:01:38]} 24. Rxb7 {[%clk 0:00:59]}  Rxb7 {[%clk 0:01:36]} 25. Nd6+ {[%clk 0:00:58]}  Kd7 {[%clk 0:01:37]} 26. Nxb7 {[%clk 0:00:59]}  e5 {[%clk 0:01:34]} 27. Kf1 {[%clk 0:00:56]}  Kc7 {[%clk 0:01:33]} 28. Nc5 {[%clk 0:00:55]}  Kd6 {[%clk 0:01:34]} 29. Nd3 {[%clk 0:00:55]}  c5 {[%clk 0:01:28]} 30. Ke2 {[%clk 0:00:54]}  c4 {[%clk 0:01:27]} 31. Ne1 {[%clk 0:00:53]}  f6 {[%clk 0:01:22]} 32. Ke3 {[%clk 0:00:53]}  Bf7 {[%clk 0:01:21]} 33. Be2 {[%clk 0:00:52]}  Ng6 {[%clk 0:01:20]} 34. Ng2 {[%clk 0:00:51]}  Kc5 {[%clk 0:01:19]} 35. h4 {[%clk 0:00:51]}  Nf8 {[%clk 0:01:16]} 36. h5 {[%clk 0:00:51]}  Ne6 {[%clk 0:01:16]} 37. f4 {[%clk 0:00:51]}  exf4+ {[%clk 0:01:15]} 38. Nxf4 {[%clk 0:00:51]}  Ng5 {[%clk 0:01:14]} 39. Ng2 {[%clk 0:00:46]}  Be8 {[%clk 0:01:08]} 40. Kf4 {[%clk 0:00:44]}  Ne6+ {[%clk 0:01:06]} 41. Ke3 {[%clk 0:00:43]}  Bc6 {[%clk 0:01:02]} 42. b3 {[%clk 0:00:43]}  cxb3 {[%clk 0:01:01]} 43. axb3 {[%clk 0:00:44]}  Ng5 {[%clk 0:01:01]} 44. b4+ {[%clk 0:00:44]}  Kd6 {[%clk 0:01:01]} 45. Bd3 {[%clk 0:00:44]}  Ke5 {[%clk 0:01:01]} 46. Ne1 {[%clk 0:00:40]}  Bxe4 {[%clk 0:00:49]} 47. Bxe4 {[%clk 0:00:40]}  Nxe4 {[%clk 0:00:50]} 48. Nf3+ {[%clk 0:00:39]}  Kd5 {[%clk 0:00:50]} 49. c4+ {[%clk 0:00:39]}  Kxc4 {[%clk 0:00:51]} 50. Kxe4 {[%clk 0:00:39]}  Kxb4 {[%clk 0:00:51]} 51. Nd4 {[%clk 0:00:33]}  g6 {[%clk 0:00:46]} 52. Nc6+ {[%clk 0:00:31]}  Kc5 {[%clk 0:00:45]} 53. Nxa7 {[%clk 0:00:32]}  Kd6 {[%clk 0:00:45]} 54. Nb5+ {[%clk 0:00:30]}  Ke6 {[%clk 0:00:45]} 55. Nd4+ {[%clk 0:00:30]}  Kd6 {[%clk 0:00:45]} 56. Kf4 {[%clk 0:00:28]}  Kd5 {[%clk 0:00:44]} 57. Nf3 {[%clk 0:00:26]}  Ke6 {[%clk 0:00:43]} 58. Ne1 {[%clk 0:00:24]}  Kd5 {[%clk 0:00:43]} 59. h6 {[%clk 0:00:24]}  Ke6 {[%clk 0:00:41]} 60. g5 {[%clk 0:00:23]}  fxg5+ {[%clk 0:00:39]} 61. Kxg5 {[%clk 0:00:23]}  Ke5 {[%clk 0:00:38]} 62. Nf3+ {[%clk 0:00:22]}  Ke6 {[%clk 0:00:39]} 63. Nd4+ {[%clk 0:00:21]}  Ke5 {[%clk 0:00:37]} 64. Nc6+ {[%clk 0:00:21]}  Ke6 {[%clk 0:00:38]} 65. Nd8+ {[%clk 0:00:18]}  Ke7 {[%clk 0:00:37]} 66. Nb7 {[%clk 0:00:17]}  Ke6 {[%clk 0:00:36]} 67. Nc5+ {[%clk 0:00:17]}  Ke7 {[%clk 0:00:33]} 68. Ne4 {[%clk 0:00:17]}  Kf7 {[%clk 0:00:33]} 69. Nf6 {[%clk 0:00:17]}  Kf8 {[%clk 0:00:33]} 70. Nxh7+ {[%clk 0:00:17]}  Kg8 {[%clk 0:00:33]} 71. Kxg6 {[%clk 0:00:17]}  Kh8 {[%clk 0:00:34]} 72. Ng5 {[%clk 0:00:17]}  Kg8 {[%clk 0:00:34]} 73. h7+ {[%clk 0:00:17]}  Kh8 {[%clk 0:00:34]} 74. Nf7# {[%clk 0:00:17]} 1-0


[Site "https://www.chess.com"]

[Event "Titled Tuesday Blitz March 22 Late 2022"]
[White "Necula, Iulian"]
[Black "Ferreira, Vitor Hugo Vieira"]
[WhiteFideId "1232380"]
[BlackFideId "2119765"]
[WhiteElo "1776"]
[BlackElo "2165"]
[Result "0-1"]
[Round "02"]
[TimeControl "180+1"]
[Date "2022.03.22"]
[WhiteClock "0:00:02"]
[BlackClock "0:01:27"]

1. b4 {[%clk 0:03:00]}  e5 {[%clk 0:02:53]} 2. Bb2 {[%clk 0:03:00]}  Bxb4 {[%clk 0:02:50]} 3. Bxe5 {[%clk 0:03:00]}  Nf6 {[%clk 0:02:51]} 4. c3 {[%clk 0:03:01]}  Be7 {[%clk 0:02:48]} 5. Nf3 {[%clk 0:03:00]}  Nc6 {[%clk 0:02:47]} 6. Bxf6 {[%clk 0:03:00]}  Bxf6 {[%clk 0:02:47]} 7. e3 {[%clk 0:03:00]}  O-O {[%clk 0:02:46]} 8. d4 {[%clk 0:03:00]}  d5 {[%clk 0:02:46]} 9. Bb5 {[%clk 0:02:57]}  Ne7 {[%clk 0:02:46]} 10. O-O {[%clk 0:02:55]}  c6 {[%clk 0:02:46]} 11. Bd3 {[%clk 0:02:54]}  g6 {[%clk 0:02:45]} 12. Nbd2 {[%clk 0:02:53]}  Nf5 {[%clk 0:02:44]} 13. h3 {[%clk 0:02:49]}  Be6 {[%clk 0:02:42]} 14. a4 {[%clk 0:02:44]}  Qa5 {[%clk 0:02:40]} 15. Qc2 {[%clk 0:02:41]}  Rac8 {[%clk 0:02:38]} 16. e4 {[%clk 0:02:38]}  dxe4 {[%clk 0:02:38]} 17. Nxe4 {[%clk 0:02:36]}  Bg7 {[%clk 0:02:36]} 18. Nc5 {[%clk 0:02:35]}  Bd5 {[%clk 0:02:33]} 19. Bxf5 {[%clk 0:02:33]}  gxf5 {[%clk 0:02:27]} 20. Qxf5 {[%clk 0:02:00]}  Bc4 {[%clk 0:02:08]} 21. Ng5 {[%clk 0:01:54]}  Rfd8 {[%clk 0:02:08]} 22. Rfe1 {[%clk 0:01:40]}  b6 {[%clk 0:02:05]} 23. Qxh7+ {[%clk 0:01:38]}  Kf8 {[%clk 0:02:05]} 24. Nb7 {[%clk 0:01:16]}  Qxg5 {[%clk 0:02:02]} 25. Nxd8 {[%clk 0:01:13]}  Bd5 {[%clk 0:02:01]} 26. g3 {[%clk 0:01:00]}  Rxd8 {[%clk 0:02:01]} 27. Re3 {[%clk 0:00:26]}  Qh6 {[%clk 0:02:00]} 28. Qf5 {[%clk 0:00:23]}  Be6 {[%clk 0:01:54]} 29. Qf3 {[%clk 0:00:09]}  Qxh3 {[%clk 0:01:53]} 30. Qg2 {[%clk 0:00:08]}  Qf5 {[%clk 0:01:49]} 31. Rae1 {[%clk 0:00:06]}  Bf6 {[%clk 0:01:44]} 32. f3 {[%clk 0:00:06]}  Bg5 {[%clk 0:01:41]} 33. Re5 {[%clk 0:00:05]}  Qf6 {[%clk 0:01:41]} 34. f4 {[%clk 0:00:05]}  Bh6 {[%clk 0:01:41]} 35. g4 {[%clk 0:00:04]}  Bxf4 {[%clk 0:01:39]} 36. g5 {[%clk 0:00:03]}  Qg6 {[%clk 0:01:34]} 37. R5e4 {[%clk 0:00:03]}  Bd5 {[%clk 0:01:32]} 38. Qg4 {[%clk 0:00:01]}  Bxe4 {[%clk 0:01:30]} 39. Rxe4 {[%clk 0:00:02]}  Bxg5 {[%clk 0:01:27]} 0-1


[Site "https://www.chess.com"]

[Event "Titled Tuesday Blitz March 22 Late 2022"]
[White "Nenezic, Marko"]
[Black "Manukian, Artak"]
[WhiteFideId "912123"]
[BlackFideId "13301373"]
[WhiteElo "2457"]
[BlackElo "2444"]
[Result "1-0"]
[Round "02"]
[TimeControl "180+1"]
[Date "2022.03.22"]
[WhiteClock "0:00:59"]
[BlackClock "0:00:18"]

1. Nf3 {[%clk 0:03:00]}  g6 {[%clk 0:02:58]} 2. d4 {[%clk 0:03:00]}  Bg7 {[%clk 0:02:58]} 3. c4 {[%clk 0:03:00]}  d6 {[%clk 0:02:58]} 4. e4 {[%clk 0:03:00]}  e5 {[%clk 0:02:57]} 5. d5 {[%clk 0:02:51]}  a5 {[%clk 0:02:56]} 6. h4 {[%clk 0:02:51]}  h5 {[%clk 0:02:56]} 7. Be2 {[%clk 0:02:49]}  Na6 {[%clk 0:02:55]} 8. b3 {[%clk 0:02:48]}  Nc5 {[%clk 0:02:55]} 9. Nc3 {[%clk 0:02:48]}  f5 {[%clk 0:02:46]} 10. exf5 {[%clk 0:02:40]}  Bxf5 {[%clk 0:02:45]} 11. Be3 {[%clk 0:02:35]}  b6 {[%clk 0:02:40]} 12. Bxc5 {[%clk 0:02:30]}  bxc5 {[%clk 0:02:40]} 13. Ng5 {[%clk 0:02:30]}  Nf6 {[%clk 0:02:35]} 14. O-O {[%clk 0:02:29]}  O-O {[%clk 0:02:34]} 15. f3 {[%clk 0:02:07]}  Qe7 {[%clk 0:02:31]} 16. Bd3 {[%clk 0:02:04]}  Nh7 {[%clk 0:02:20]} 17. Bxf5 {[%clk 0:01:50]}  Rxf5 {[%clk 0:02:18]} 18. Nce4 {[%clk 0:01:47]}  Nxg5 {[%clk 0:02:12]} 19. hxg5 {[%clk 0:01:47]}  Rxg5 {[%clk 0:01:39]} 20. Nxg5 {[%clk 0:01:45]}  Qxg5 {[%clk 0:01:40]} 21. Qc1 {[%clk 0:01:37]}  Qg3 {[%clk 0:01:32]} 22. Qe1 {[%clk 0:01:36]}  Qg5 {[%clk 0:01:20]} 23. Rd1 {[%clk 0:01:32]}  a4 {[%clk 0:01:11]} 24. Qd2 {[%clk 0:01:21]}  Qg3 {[%clk 0:01:03]} 25. Qf2 {[%clk 0:01:21]}  Qg5 {[%clk 0:00:57]} 26. f4 {[%clk 0:01:16]}  exf4 {[%clk 0:00:49]} 27. Qxf4 {[%clk 0:01:16]}  Qxf4 {[%clk 0:00:47]} 28. Rxf4 {[%clk 0:01:16]}  axb3 {[%clk 0:00:47]} 29. axb3 {[%clk 0:01:17]}  Bd4+ {[%clk 0:00:37]} 30. Kh1 {[%clk 0:01:10]}  Ra3 {[%clk 0:00:36]} 31. Rf3 {[%clk 0:01:08]}  g5 {[%clk 0:00:25]} 32. b4 {[%clk 0:01:01]}  Kg7 {[%clk 0:00:18]} 33. Rxa3 {[%clk 0:00:59]} 1-0


[Site "https://www.chess.com"]